Cogmind - Beta 13 @@@ ROGUE MODE // 2024.06.20 @ 16:28:48 Player: wad Result: Self-destructed Performance ------------- Evolutions (2) 1000 Regions Visited (4) 800 Robots Destroyed (28) 140 Value Destroyed (1015) 1015 Prototype IDs (3) 60 Alien Tech Used (0) 0 Bonus (200) 200 TOTAL SCORE: 3215 Bonus ------- Entered Garrisons 200 Cogmind --------- Core Integrity 217/550 Matter 249/300 Energy 180/180 System Corruption 0% Temperature Cool (0) Movement Core (200) Ox3 Location -8/Garrison Parts ------- > --- POWER (2) -------- Meta Core > --- PROPULSION (3) --- (None) > --- UTILITY (4) ------ Subdweller Optics Subdweller Optics > --- WEAPON (2) ------- (None) > --- INVENTORY (5) ---- Relay Coupler [NC] (27) Makeshift Laser Grenade Launcher Scrap Shield Fragment (48) Peak State ------------ > --- POWER ------------ Meta Core > --- PROPULSION ------- Aluminum Leg Makeshift Leg Makeshift Leg > --- UTILITY ---------- Scrap Shield > --- WEAPON ----------- Makeshift Laser Subdweller Beam Cannon Heavy Battle Rifle > --- INVENTORY -------- Battle Cannon Slug Cannon Grenade Launcher Scrap Shield Fragment Scrap Shield Fragment [Rating: 37] Favorites ----------- Power Meta Core Engine Ion Engine Power Core Meta Core Propulsion Makeshift Leg Leg Makeshift Leg Utility Scrap Shield Device Subdweller Optics Storage Small Storage Unit Protection Scrap Shield Weapon Subdweller Beam Cannon Energy Gun Particle Gun Energy Cannon Subdweller Beam Cannon Ballistic Gun Assault Rifle Ballistic Cannon Slug Cannon Launcher Grenade Launcher Build | -11 -10 -10 -8 -8 ------- Run | Yrd Mat Sub Mat Gar Slots Evolved 4 | . . . 4 . Power 1 | . . . 1 . Propulsion 1 | . . . 1 . Utility 2 | . . . 2 . Weapon . | . . . . . Parts Attached 36 | 6 8 20 . 2 Power 4 | 1 1 1 . 1 Engine 3 | 1 1 . . 1 Core 1 | . . 1 . . Reactor . | . . . . . Propulsion 7 | 2 . 5 . . Treads . | . . . . . Leg 7 | 2 . 5 . . Wheel . | . . . . . Hover . | . . . . . Flight . | . . . . . Utility 10 | 1 3 6 . . Device 2 | . . 2 . . Storage 6 | 1 2 3 . . Processor . | . . . . . Hackware . | . . . . . Protection 2 | . 1 1 . . Artifact . | . . . . . Weapon 15 | 2 4 8 . 1 Energy Gun 2 | . 1 1 . . Energy Cannon 1 | . . 1 . . Ballistic Gun 7 | 2 2 3 . . Ballistic Cannon 2 | . . 1 . 1 Launcher 3 | . 1 2 . . Special Weapon . | . . . . . Impact Weapon . | . . . . . Slashing Weapon . | . . . . . Piercing Weapon . | . . . . . Special Melee Weapon . | . . . . . Unidentified Prototypes 1 | . . 1 . . Parts Lost 10 | . . 3 . 7 Power 1 | . . . . 1 Propulsion 4 | . . 1 . 3 Utility 1 | . . 1 . . Weapon 4 | . . 1 . 3 Highest Loss Streak 4 | . . 1 . 4 To Critical Strikes . | . . . . . Average Slot Usage (%) 85 | . 93 87 69 65 Engine 4 | . 14 1 . 6 Core 7 | . . 9 7 7 Leg 29 | . 28 32 23 14 Device 2 | . . . 15 16 Storage 3 | . 14 2 . . Protection 8 | . 8 9 . . Energy Gun 4 | . 4 4 . . Energy Cannon 7 | . . 9 7 4 Ballistic Gun 11 | . 23 10 . . Ballistic Cannon 6 | . . 6 7 14 Naked Turns . | . . . . . Heaviest Build 43 | 11 16 43 28 31 Greatest Support 50 | 20 20 50 50 50 Greatest Overweight (x) 7 | . . 1 . 7 Average Overweight (x) . | . . . . 1 Largest Inventory Capacity 25 | 8 25 25 5 5 Average Capacity 5 | 6 8 5 5 5 Most Carried 8 | 5 8 8 3 4 Average Carried 5 | 3 7 5 3 3 Final Capacity 8 | 8 8 5 5 5 Final Carried 8 | 4 8 3 3 4 Class Distribution -------------------- 38% | Mutant 32% | Derelict-Tank 10% | Scavenger-Mutant 9% | Tank 8% | Derelict-Mutant Dominant Class ---------------- Mutant | -10/Materials Derelict-Tank | -10/Subcaves Scavenger-Mutant | -8/Materials Scavenger-Mutant | -8/Garrison Resources | -11 -10 -10 -8 -8 ----------- Run | Yrd Mat Sub Mat Gar Matter Collected 1220 | 212 224 480 75 229 Remotely . | . . . . . Salvage Created 658 | . 235 340 . 83 Parts 63 | . 22 30 . 11 Haulers Intercepted . | . . . . . Recyclers Shooed . | . . . . . Parts Field Recycled . | . . . . . Retrieved Matter . | . . . . . Parts Self-Destructed 23 | . . 23 . . Prevented . | . . . . . Kills | -11 -10 -10 -8 -8 ------- Run | Yrd Mat Sub Mat Gar Combat Hostiles Destroyed 26 | . 7 12 . 7 Guns 10 | . 6 4 . . Cannons 11 | . . 4 . 7 AOE 5 | . 1 4 . . Classes Destroyed 5 | . 4 1 . . Builder 1 | . 1 . . . Tunneler 1 | . 1 . . . Swarmer 8 | . 3 . . 5 Grunt 6 | . 4 . . 2 Subdweller 12 | . . 12 . . Best Kill Streak 4 | . 3 3 . 4 Combat Bots Only 4 | . 3 3 . 4 Max Kills in Single Turn 2 | . 1 2 . 2 Gunslinging . | . . . . . Exploded 2 | . 1 2 . . Melee . | . . . . . Uniques/NPCs Destroyed . | . . . . . Combat | -11 -10 -10 -8 -8 -------- Run | Yrd Mat Sub Mat Gar Hostile Shots Fired 155 | . 22 46 . 87 Missed 42 | . 6 12 . 24 Damage Taken 1980 | . 161 969 . 850 Core 479 | . 21 125 . 333 Absorbed by Shields . | . . . . . Redirected to Shielding 47 | . . 47 . . Core Remaining (%) 70 | 100 . 41 . . Volleys Fired 78 | . 24 29 . 25 Largest 3 | . 2 3 . 2 Hottest 161 | . 85 161 . 87 Shots Fired 164 | . 47 67 . 50 Gun 73 | . 46 27 . . Cannon 84 | . . 34 . 50 Launcher 7 | . 1 6 . . Special . | . . . . . Kinetic 137 | . 40 47 . 50 Thermal 20 | . 6 14 . . Explosive 7 | . 1 6 . . Electromagnetic . | . . . . . Robot Hit Streak 17 | . 17 6 . 3 Robot Miss Streak 5 | . 1 2 . 5 Penetration Max . | . . . . . Secondary Targets 1 | . 1 . . . Max Gunslinging Chain 1 | . 1 . . . Shots Hit Robots 82 | . 37 26 . 19 Core Hits 39 | . 12 17 . 10 Critical Kills 1 | . . 1 . . Critical Parts Destroyed 2 | . . 1 . 1 Critical Strikes 5 | . 1 3 . 1 Burn 1 | . 1 . . . Destroy 4 | . . 3 . 1 Melee Attacks . | . . . . . Impact . | . . . . . Slashing . | . . . . . Piercing . | . . . . . Sneak Attacks . | . . . . . Combat Hostiles . | . . . . . Follow-up Attacks . | . . . . . Damage Inflicted 2011 | . 515 1018 . 478 Guns 707 | . 475 232 . . Cannons 871 | . . 393 . 478 Explosions 433 | . 40 393 . . Melee . | . . . . . Ramming . | . . . . . Kinetic 1396 | . 415 503 . 478 Thermal 182 | . 60 122 . . Explosive 433 | . 40 393 . . Electromagnetic . | . . . . . Impact . | . . . . . Slashing . | . . . . . Piercing . | . . . . . Highest Corruption 2 | . 2 2 . . Average Corruption 1 | . 1 2 . . Corruption Purged . | . . . . . Corruption Blocked . | . . . . . Effects 33 | . 4 29 . . Message Errors 6 | . 1 5 . . Matter Fused 8 | . . 8 . . Heat Flow Errors 4 | . 1 3 . . Energy Discharges 3 | . . 3 . . Data Loss (minor) 7 | . 1 6 . . Misfires 2 | . . 2 . . Weapon Failures 3 | . 1 2 . . Overload Shots . | . . . . . Overflow Damage . | . . . . . Projectiles . | . . . . . Explosions . | . . . . . Melee . | . . . . . Knockbacks 8 | . . 1 . 7 Impact . | . . . . . Kinetic 8 | . . 1 . 7 Secondary . | . . . . . Self-Inflicted Damage 2 | . . 2 . . Shots 1 | . . 1 . . Rammed . | . . . . . Targets Rammed . | . . . . . Kicked . | . . . . . Crushed . | . . . . . Highest Temperature 307 | . 307 249 . 277 Average Temperature 98 | . 111 51 . 113 Received Heat Transfer 552 | . 63 129 . 360 Siege Activations . | . . . . . Robots Corrupted . | . . . . . Combat Hostiles . | . . . . . Parts Fried . | . . . . . Impact Corruptions . | . . . . . Robots Melted . | . . . . . Combat Hostiles . | . . . . . Parts Melted . | . . . . . Heat Transferred 407 | . 222 185 . . Parts Sabotaged . | . . . . . Parts Stolen . | . . . . . Parts Stripped . | . . . . . Power Chain Reactions . | . . . . . Alert | -11 -10 -10 -8 -8 ------- Run | Yrd Mat Sub Mat Gar Peak Influence 257 | . 185 . . 257 Initial . | . . . . . Average 117 | . 81 . . 195 Maximum Alert Level 1 | . . . . 1 Low Security (%) 72 | 100 100 . 100 28 Level 1 27 | . . . . 71 Level 2 . | . . . . . Level 3 . | . . . . . Level 4 . | . . . . . Level 5 . | . . . . . High Security . | . . . . . Max Security . | . . . . . Squads Dispatched . | . . . . . Investigation . | . . . . . Extermination . | . . . . . Reinforcement . | . . . . . Assault . | . . . . . Garrison . | . . . . . Intercept . | . . . . . Searches Triggered . | . . . . . Construction Impeded . | . . . . . Haulers Reinforced . | . . . . . Active Scanning Responses . | . . . . . Cargo Convoy Interrupts . | . . . . . Stealth | -11 -10 -10 -8 -8 --------- Run | Yrd Mat Sub Mat Gar Distress Signals . | . . . . . Communications Jammed . | . . . . . Distress Signals . | . . . . . Times Spotted 35 | . 10 11 . 14 Peak Tracking Total 5 | . 4 3 . 5 Tactical Retreats 6 | . 2 . . 4 Traps | -11 -10 -10 -8 -8 ------- Run | Yrd Mat Sub Mat Gar Traps Triggered 2 | . 2 . . . Indirectly . | . . . . . Trap Hack Attempts . | . . . . . Triggered . | . . . . . Disarmed . | . . . . . Reprogrammed . | . . . . . Reused . | . . . . . Traps Extracted . | . . . . . Installed . | . . . . . Triggered . | . . . . . Machines | -11 -10 -10 -8 -8 ---------- Run | Yrd Mat Sub Mat Gar Machines Disabled 1 | . . . . 1 Max in Single Turn 1 | . . . . 1 Garrison Relay 1 | . . . . 1 Machines Repaired . | . . . . . Machines Dismantled . | . . . . . Machines Sabotaged . | . . . . . Overloaded Fab Kills . | . . . . . Hacking | -11 -10 -10 -8 -8 --------- Run | Yrd Mat Sub Mat Gar Machines Accessed 4 | . 2 . 1 1 Terminals 3 | . 2 . . 1 Fabricators . | . . . . . Repair Stations . | . . . . . Recycling Units . | . . . . . Scanalyzers . | . . . . . Garrison Access 1 | . . . 1 . Total Hacks 6 | . 4 . 1 1 Successful 4 | . 2 . 1 1 Failed 2 | . 2 . . . Catastrophic . | . . . . . Database Lockouts . | . . . . . Manual . | . . . . . Terminals 5 | . 4 . . 1 Fabricators . | . . . . . Repair Stations . | . . . . . Recycling Units . | . . . . . Scanalyzers . | . . . . . Garrison Access 1 | . . . 1 . Terminal Hacks 3 | . 2 . . 1 Prototype ID Bank 1 | . 1 . . . Hauler Manifests 1 | . 1 . . . Garrison Registry 1 | . . . . 1 Fabricator Hacks . | . . . . . Repair Station Hacks . | . . . . . Recycling Unit Hacks . | . . . . . Scanalyzer . | . . . . . Garrison Access Hacks 1 | . . . 1 . Unlock Access 1 | . . . 1 . Unauthorized Hacks . | . . . . . Terminals . | . . . . . Fabricators . | . . . . . Repair Stations . | . . . . . Recycling Units . | . . . . . Scanalyzers . | . . . . . Garrison Access . | . . . . . Data Cores Recovered . | . . . . . Used . | . . . . . Hacking Detections 4 | . 2 . 1 1 Full Trace Events . | . . . . . Feedback Events . | . . . . . Feedback Blocked . | . . . . . Robot Schematics Acquired . | . . . . . Robots Built . | . . . . . Authchips . | . . . . . Time . | . . . . . Total Robot Build Rating . | . . . . . Part Schematics Acquired . | . . . . . Parts Built . | . . . . . Authchips . | . . . . . Time . | . . . . . Total Part Build Rating . | . . . . . Parts Repaired . | . . . . . Time . | . . . . . Parts Recycled . | . . . . . Recycled Matter . | . . . . . Retrieved Matter . | . . . . . Retrieved Components . | . . . . . Parts Scanalyzed . | . . . . . Part Schematics Acquired . | . . . . . Parts Damaged . | . . . . . Bothacking | -11 -10 -10 -8 -8 ------------ Run | Yrd Mat Sub Mat Gar Used RIF Installer . | . . . . . Robots Hacked . | . . . . . Non-combat . | . . . . . Combat . | . . . . . Robot Hacks Applied . | . . . . . Relay Couplers Released 3 | . . . . 3 Machine Destruction 3 | . . . . 3 Fabnet Peak Effective % . | . . . . . Robots Rewired . | . . . . . Allies Hacked . | . . . . . Hacks Repelled . | . . . . . Allies | -11 -10 -10 -8 -8 -------- Run | Yrd Mat Sub Mat Gar Total Allies . | . . . . . Largest Group . | . . . . . Highest-Rated Group . | . . . . . Highest-Rated Ally . | . . . . . Total Orders . | . . . . . Ally Attacks . | . . . . . Total Damage . | . . . . . Kills . | . . . . . Allies Corrupted . | . . . . . Allies Melted . | . . . . . Intel | -11 -10 -10 -8 -8 ------- Run | Yrd Mat Sub Mat Gar Robot Analysis Total . | . . . . . Derelict Logs Recovered . | . . . . . Drone Launches . | . . . . . Drone Recoveries . | . . . . . Exploration | -11 -10 -10 -8 -8 ------------- Run | Yrd Mat Sub Mat Gar Turns Passed 3494 | 89 615 2308 22 460 Spaces Moved 2345 | 75 425 1626 16 203 Core 62 | 23 . . . 39 Treads . | . . . . . Legs 2283 | 52 425 1626 16 164 Wheels . | . . . . . Hover . | . . . . . Flight . | . . . . . Fastest Speed 50 | 50 120 120 133 133 Average Speed 132 | 98 120 131 133 180 Slowest Speed 400 | 120 120 190 133 400 Overloaded Moves . | . . . . . Propulsion Burnouts . | . . . . . Robots Hopped . | . . . . . Cave-ins Triggered . | . . . . . Exploration Rate (%) 28 | 3 40 59 5 35 Regions Visited 4 Branch Regions 1 Pre-discovered Areas . | . . . . . Known Exits Taken 1 | . . . 1 . Unknown Exits Taken 3 | 1 1 1 . . Scrap Searched 6 | . . 6 . . Spaces Dug 13 | . 8 5 . . Terrain Destroyed 61 | . 8 45 . 8 Melee . | . . . . . Projectile 23 | . . 15 . 8 AOE 38 | . 8 30 . . Terrain Rammed . | . . . . . Walls Destroyed . | . . . . . Machines Disabled . | . . . . . Actions | -11 -10 -10 -8 -8 --------- Run | Yrd Mat Sub Mat Gar Total 2579 | 90 480 1747 16 246 Wait 52 | . 11 31 . 10 Move 2342 | 74 424 1625 16 203 Hop . | . . . . . Pick Up 44 | 10 9 21 . 4 Fast Attach . | . . . . . Attach 18 | 6 1 8 . 3 Detach 1 | . . 1 . . Swap 20 | . 7 12 . 1 Drop 23 | . 4 19 . . Fire 78 | . 24 29 . 25 Melee . | . . . . . Ram . | . . . . . Kick . | . . . . . Crush . | . . . . . Escape Stasis . | . . . . . Rewire 1 | . . 1 . . Trap . | . . . . . Miscellaneous . | . . . . . Route ------- -11/Scrapyard -10/Materials (discovered 2 exits: [*Mat] / [*Sub]) -10/Subcaves (discovered 2 exits: *Mat x2) -8/Materials -8/Garrison (discovered 4 exits: [Fac x3] / [Mat]) History --------- Turn | Location | Event 9 | -11/Scrapyard | Discovered new exit (range 14) 90 | -11/Scrapyard | Entered Materials 316 | -10/Materials | Build established: Mutant 431 | -10/Materials | Discovered new exit (range 15) 580 | -10/Materials | Discovered new exit (range 6) 705 | -10/Materials | Entered Subcaves 915 | -10/Subcaves | A Subdweller sparked back to life 915 | -10/Subcaves | A Subdweller sparked back to life 915 | -10/Subcaves | A Subdweller sparked back to life 952 | -10/Subcaves | Found Prototype Power Core 953 | -10/Subcaves | Identified Meta Core 954 | -10/Subcaves | Attached Meta Core, gained temporary slots: Propulsion, Utility, Weapon 1083 | -10/Subcaves | Discovered new exit (range 15) 1238 | -10/Subcaves | Shifting Twisted Machinery released Sub. Beam Cannon 1457 | -10/Subcaves | Build established: Tank 1639 | -10/Subcaves | Shifting Twisted Machinery released Sub. Power Source 1660 | -10/Subcaves | Shifting Twisted Machinery released Slug Cannon 1687 | -10/Subcaves | A swath of the cavern ceiling suddenly collapsed 1760 | -10/Subcaves | Build established: Derelict-Tank 2013 | -10/Subcaves | Shifting Twisted Machinery released Flamer 2026 | -10/Subcaves | Shifting Twisted Machinery released Flamer 2605 | -10/Subcaves | Core integrity fell below 50% 2630 | -10/Subcaves | Discovered new exit (range 16) 2907 | -10/Subcaves | Build established: Derelict-Mutant 2911 | -10/Subcaves | Ambushed by Subdwellers from Twisted Machinery 3013 | -10/Subcaves | Entered Materials 3013 | -8/Materials | Evolved 4 slots: Power x1, Propulsion x1, Utility x2 3035 | -8/Materials | Identified exit to Garrison 3035 | -8/Materials | Entered Garrison 3063 | -8/Garrison | Discovered new exit (range 61) 3063 | -8/Garrison | Discovered new exit (range 44) 3063 | -8/Garrison | Discovered new exit (range 66) 3063 | -8/Garrison | Discovered new exit (range 53) 3091 | -8/Garrison | Triggered checkpoint 3165 | -8/Garrison | Garrison Relay disabled 3251 | -8/Garrison | Build established: Scavenger-Mutant 3299 | -8/Garrison | Triggered checkpoint 3363 | -8/Garrison | Lost 4 parts (3n1w) 3469 | -8/Garrison | Triggered checkpoint 3486 | -8/Garrison | Core integrity fell below 50% 3495 | -8/Garrison | Self-destructed Last Messages --------------- G-47 Trooper knocked back. G-47 Trooper destroyed. Acquired 16 matter. Aluminum Leg destroyed. Sub. Optics shoots sparks and powers down. G-47 Trooper knocked back. Acquired 2 matter. G-47 Trooper destroyed. Acquired 125 matter. Acquired 1 matter. Acquired 5 matter. Acquired 1 matter. Acquired 21 matter. Acquired 1 matter. Acquired 6 matter. Beams of light sweep through the air. An alarm sounds. Battle Cannon destroyed. Lgt. Ion Engine destroyed. Slug Cannon destroyed. Map ----- +----------------------------------------------------+ | ##?????????????????????????????????????????? | | #??????????????#####???????????????????????? | | #?#####????????#!!!#???????????????????????? | | #?# #????????#! !#???????????????????????? | | ###"""#######??#! !#???????????????????????? | | #??## ##???????????????????????? | | ######+#### #???# #????????????????????????? | | ""#???# ## # ##### #????????????????????????? | | ###???# + + #????????????????????????? | | ??????# #### #######????????????????????????? | | ??????# #??# #?????????##########???????????? | | ??????# #??# #?????????# #???????????? | | ??????# #??# #?????????# ^ < #???????????? | | ####### #### #?????????# #???????????? | | + + ## + #?????????# #+#####???????????? | | # #! ####### #?????????# # #???????????????? | | # ##+#?????# #?????????# #+#???????????????? | | # # !#?????# #???#####?# #???????????????? | | + + #?????# #???# #?# #???????????????? | | # ####???### ##### < #?# #???????????????? | | #+######## #?# #???????????????? | | + #?# ###???????????????? | | #########^^##########?#gg#?????????????????? | | #???????# ############ g#?????????????????? | | #???????# #?????????????????? | | +##??##### @#?????????????????? | | % ####""## ###############?????????????????? | | " #???????????????????????????????? | | " !#???????????????????????????????? | | #########+########????????????????????????? | | ^^###?????# #[[[[[[#????????????????????????? | | #?????# #????????????????????????? | | #?????##########????????????????????????? | | #???????????????????????????????????????? | | #???????????????????????????????????????? | | ###???????????????????????????????????????? | | ##########????????????????????????????????? | | #????????????????????????????????? | | #????????????????????????????????? | | ###+### #????????????????????????????????? | | ##?# #?# #????????????????????????????????? | | #??# ### #????????????????????????????????? | | #??# +^^#????????????????????????????????? | | #### ###^^#????????????????????????????????? | | + #?# #????????????????????????????????? | | #### #?# #????????????????????????????????? | | #??# #?# #????????????????????????????????? | | ####+### ##############???????????????????? | | ^^ #???????????????????? | | ^^ #???????????????????? | +----------------------------------------------------+ Best States ------------- Heat Dissipation 31 Energy Generation 22 Energy Capacity 250 Matter Stores 300 Matter Capacity 300 Sight Range 21 Terrain Scan Density 10 Armor Coverage 800 Weapon Shielding 33 Evasion (%) 55 Item Schematics ----------------- None Robot Schematics ------------------ None Fabricated ------------ Nothing Alien Tech Used ----------------- None Achievements -------------- None Challenges ------------ None Game ------ Seed LinkedMassBoregun Manual? 0 Play Time 00:55:08 Cumulative 1.8 hours Start 2024.06.20 @ 15:18:27 End 2024.06.20 @ 16:28:48 Sessions 1 Manual Loads 0 Difficulty Rogue Special Mode None Game No. 4 Rogue 4 Adventurer 0 Explorer 0 Win Type - Total 0 Types 0/0/0/0/0/0/0/0/0 Lore% 1 Gallery% 5 Achievement% 4 Wizard Run 0 Options --------- Layout 1 ASCII 0 Keyboard 0 Movement Arrows Keybinds 0 Fullscreen 1 Font 24/Smallcaps Map View 50x35 Zoom Use 0% Tactical HUD 0 Map Filters NONE Filters NONE Steam 1 RUN: b803dc56-e8bd-49c1-8a0e-a2bcd30b61d7